Workbook

Sheet Sheet1
A1: 6 Units of 5101 LINDSEY AVE, PICO RIVERA, CA 90660
A2: Rent Roll
A5: Year 2018 | B5: JUN | C5: JUL | D5: AUG | E5: SEP | F5: OCT | G5: NOV | H5: DEC | I5: Yearly Total
A6: 5101 : 1 BED/ 1 BATH | B6: 1500 | C6: 1500 | D6: 1500 | E6: 1500 | F6: 1500 | G6: 1500 | H6: 1500 | I6: =SUM(B6:H6) -> 10500
A7: 5103A : 1 BED/ 1 BATH | B7: 1450 | C7: 1450 | D7: 1450 | E7: 1450 | F7: 1450 | G7: 1450 | H7: 1450 | I7: =SUM(B7:H7) -> 10150
A8: 5103B : 1 BED/ 1 BATH | B8: 1450 | C8: 1450 | D8: 1450 | E8: 1450 | F8: 1450 | G8: 1450 | H8: 1450 | I8: 10150
A9: 5110 : 1 BED/ 1 BATH | B9: 1450 | C9: 1450 | D9: 1450 | E9: 1450 | F9: 1450 | G9: 1450 | H9: 1450 | I9: 10150
A10: 9148A : 1 BED/ 1 BATH | B10: 1100 | C10: 1100 | D10: 1100 | E10: 1100 | F10: 1100 | G10: 1100 | H10: 1100 | I10: 7700
A11: 9148B : 1 BED / 1 BATH | B11: 1050 | C11: 1050 | D11: 1050 | E11: 1050 | F11: 1050 | G11: 1050 | H11: 1050 | I11: 7350
A12: STORAGE 5105 | B12: 100 | C12: 100 | D12: 100 | E12: 100 | F12: 100 | G12: 100 | H12: 100 | I12: 700
A13: STORAGE 5103B | B13: 100 | C13: 100 | D13: 100 | E13: 100 | F13: 100 | G13: 100 | H13: 100 | I13: 700
A14: Total | B14: =SUM(B6:B13) -> 8200 | C14: =SUM(C6:C13) -> 8200 | D14: 8200 | E14: 8200 | F14: =SUM(F6:F13) -> 8200 | G14: =SUM(G6:G13) -> 8200 | H14: =SUM(H6:H13) -> 8200 | I14: 57400
A17: Year 2019 | B17: JAN | C17: FEB | D17: MAR | E17: APR | F17: MAY | G17: JUN | H17: JUL | I17: AUG | J17: SEPT | K17: OCT | L17: NOV | M17: DEC | N17: Yearly Total
A18: 5101 : 1 BED/ 1 BATH | B18: 1500 | C18: 1500 | D18: 1500 | E18: 1500 | F18: 1500 | G18: 1500 | H18: 1500 | I18: 1500 | J18: 1500 | K18: 1500 | L18: 1500 | M18: 1500 | N18: =SUM(B18:M18) -> 18000
A19: 5103A : 1 BED/ 1 BATH | B19: 1450 | C19: 1450 | D19: 1450 | E19: 1450 | F19: 1450 | G19: 1450 | H19: 1450 | I19: 1450 | J19: 1450 | K19: 1450 | L19: 1450 | M19: 1450 | N19: =SUM(B19:M19) -> 17400
A20: 5103B : 1 BED/ 1 BATH | B20: 1450 | C20: 1450 | D20: 1450 | E20: 1450 | F20: 1450 | G20: 1450 | H20: 1450 | I20: 1450 | J20: 1450 | K20: 1450 | L20: 1450 | M20: 1450 | N20: 17400
A21: 5110 : 1 BED/ 1 BATH | B21: 1450 | C21: 1450 | D21: 1450 | E21: 1450 | F21: 1450 | G21: 1450 | H21: 1450 | I21: 1450 | J21: 1450 | K21: 1450 | L21: 1450 | M21: 1450 | N21: 17400
A22: 9148A : 1 BED/ 1 BATH | B22: 1100 | C22: 1100 | D22: 1100 | E22: 1100 | F22: 1100 | G22: 1100 | H22: 1100 | I22: 1100 | J22: 1100 | K22: 1100 | L22: 1100 | M22: 1100 | N22: 13200
A23: 9148B : 1 BED / 1 BATH | B23: 1050 | C23: 1050 | D23: 1050 | E23: 1050 | F23: 1050 | G23: 1050 | H23: 1050 | I23: 1050 | J23: 1050 | K23: 1050 | L23: 1050 | M23: 1050 | N23: 12600
A24: STORAGE 5105 | B24: 100 | C24: 100 | D24: 100 | E24: 100 | F24: 100 | G24: 100 | H24: 100 | I24: 100 | J24: 100 | K24: 100 | L24: 100 | M24: 100 | N24: 1200
A25: STORAGE 5103B | B25: 100 | C25: 100 | D25: 100 | E25: 100 | F25: 100 | G25: 100 | H25: 100 | I25: 100 | J25: 100 | K25: 100 | L25: 100 | M25: 100 | N25: 1200
A26: Total | B26: =SUM(B18:B25) -> 8200 | C26: =SUM(C18:C25) -> 8200 | D26: =SUM(D18:D25) -> 8200 | E26: =SUM(E18:E25) -> 8200 | F26: =SUM(F18:F25) -> 8200 | G26: =SUM(G18:G25) -> 8200 | H26: =SUM(H18:H25) -> 8200 | I26: =SUM(I18:I25) -> 8200 | J26: =SUM(J18:J25) -> 8200 | K26: 8200 | L26: 8200 | M26: 8200 | N26: 98400
A29: Year 2020 | B29: JAN | C29: FEB | D29: MAR | E29: APR | F29: MAY | G29: JUN | H29: JUL | I29: AUG | J29: SEPT | K29: OCT | L29: NOV | M29: DEC | N29: Yearly Total
A30: 5101 : 1 BED/ 1 BATH | B30: 1500 | C30: 1500 | D30: 1500 | E30: 1500 | F30: 1500 | G30: 1500 | H30: 1500 | I30: 1500 | J30: 1500 | K30: 1500 | L30: 1500 | M30: 1500 | N30: =SUM(B30:M30) -> 18000
A31: 5103A : 1 BED/ 1 BATH | B31: 1450 | C31: 1450 | D31: 1450 | E31: 1450 | F31: 1450 | G31: 1450 | H31: 1450 | I31: 1450 | J31: 1450 | K31: 1450 | L31: 1450 | M31: 1450 | N31: =SUM(B31:M31) -> 17400
A32: 5103B : 1 BED/ 1 BATH | B32: 1450 | C32: 1450 | D32: 1450 | E32: 1450 | F32: 1450 | G32: 1450 | H32: 1450 | I32: 1450 | J32: 1450 | K32: 1450 | L32: 1450 | M32: 1450 | N32: 17400
A33: 5110 : 1 BED/ 1 BATH | B33: 1450 | C33: 1450 | D33: 1450 | E33: 1450 | F33: 1450 | G33: 1450 | H33: 1450 | I33: 1450 | J33: 1450 | K33: 1450 | L33: 1450 | M33: 1450 | N33: 17400
A34: 9148A : 1 BED/ 1 BATH | B34: VACANT | C34: VACANT | D34: VACANT | E34: VACANT | F34: VACANT | G34: VACANT | H34: VACANT | I34: 0 | J34: 0 | K34: 0 | L34: 0 | M34: 0 | N34: 0
A35: 9148B : 1 BED / 1 BATH | B35: VACANT | C35: VACANT | D35: VACANT | E35: VACANT | F35: VACANT | G35: VACANT | H35: VACANT | I35: 0 | J35: 0 | K35: 0 | L35: 0 | M35: 0 | N35: 0
A36: STORAGE 5105 | B36: 100 | C36: 100 | D36: 100 | E36: 100 | F36: 100 | G36: 100 | H36: 100 | I36: 100 | J36: 100 | K36: 100 | L36: 100 | M36: 100 | N36: 1200
A37: STORAGE 5103B | B37: 100 | C37: 100 | D37: 100 | E37: 100 | F37: 100 | G37: 100 | H37: 100 | I37: 100 | J37: 100 | K37: 100 | L37: 100 | M37: 100 | N37: 1200
A38: Total | B38: =SUM(B30:B37) -> 6050 | C38: =SUM(C30:C37) -> 6050 | D38: 6050 | E38: 6050 | F38: 6050 | G38: 6050 | H38: 6050 | I38: 6050 | J38: 6050 | K38: 6050 | L38: 6050 | M38: 6050 | N38: 72600
A40: Year 2021 | B40: JAN | C40: FEB | D40: MAR | E40: APR | F40: MAY | G40: JUN | H40: JUL | I40: AUG | J40: SEP | K40: OCT | L40: NOV | M40: DEC | N40: Yearly Total
A41: 5101 : 1 BED/ 1 BATH | B41: 1500 | C41: 1500 | D41: 1500 | E41: 1500 | F41: 1500 | G41: 1500 | H41: 1500 | I41: 1500 | J41: 1500 | K41: 1500 | L41: 1500 | M41: 1500 | N41: =SUM(B41:M41) -> 18000
A42: 5103A : 1 BED/ 1 BATH | B42: 1450 | C42: 1450 | D42: 1450 | E42: 1450 | F42: 1450 | G42: 1450 | H42: 1450 | I42: 1450 | J42: 1450 | K42: 1450 | L42: 1450 | M42: 1450 | N42: =SUM(B42:M42) -> 17400
A43: 5103B : 1 BED/ 1 BATH | B43: 1450 | C43: 1450 | D43: 1450 | E43: 1450 | F43: 1450 | G43: 1450 | H43: 1450 | I43: 1450 | J43: 1450 | K43: 1450 | L43: 1450 | M43: 1450 | N43: 17400
A44: 5110 : 1 BED/ 1 BATH | B44: 1450 | C44: 1450 | D44: 1450 | E44: 1450 | F44: 1450 | G44: 1450 | H44: 1450 | I44: 1450 | J44: 1450 | K44: 1450 | L44: 1450 | M44: 1450 | N44: 17400
A45: 9148A : 1 BED/ 1 BATH | B45: VACANT | C45: VACANT | D45: VACANT | E45: VACANT | F45: 1250 | G45: 1250 | H45: 1250 | I45: 1250 | J45: 1250 | K45: 1250 | L45: 1250 | M45: 1250 | N45: 10000
A46: 9148B : 1 BED / 1 BATH | B46: VACANT | C46: VACANT | D46: VACANT | E46: VACANT | F46: 1250 | G46: 1250 | H46: 1250 | I46: 1250 | J46: 1250 | K46: 1250 | L46: 1250 | M46: 1250 | N46: 10000
A47: STORAGE 5105 | B47: 100 | C47: 100 | D47: 100 | E47: 100 | F47: 100 | G47: 100 | H47: 100 | I47: 100 | J47: 100 | K47: 100 | L47: 100 | M47: 100 | N47: 1200
A48: STORAGE 5103B | B48: 100 | C48: 100 | D48: 100 | E48: 100 | F48: 100 | G48: 100 | H48: 100 | I48: 100 | J48: 100 | K48: 100 | L48: 100 | M48: 100 | N48: 1200
A49: Total | B49: =SUM(B41:B48) -> 6050 | C49: =SUM(C41:C48) -> 6050 | D49: 6050 | E49: =SUM(E41:E48) -> 6050 | F49: =SUM(F41:F48) -> 8550 | G49: =SUM(G41:G48) -> 8550 | H49: =SUM(H41:H48) -> 8550 | I49: 8550 | J49: =SUM(J41:J48) -> 8550 | K49: 8550 | L49: 8550 | M49: 8550 | N49: 92600
A51: Year 2022 | B51: JAN | C51: FEB | D51: MAR | E51: APR | F51: MAY | G51: JUN | H51: JUL | I51: AUG | J51: SEP | K51: OCT | L51: NOV | M51: DEC
A52: 5101 : 1 BED/ 1 BATH | B52: 1500 | C52: 1500 | D52: 1500 | E52: 1500 | F52: 1500 | G52: 1500 | H52: 1500 | I52: 1500 | J52: 1500 | K52: 1500 | L52: 1500 | M52: 1500 | N52: =SUM(B52:M52) -> 18000
A53: 5103A : 1 BED/ 1 BATH | B53: 1450 | C53: 1450 | D53: 1450 | E53: 1450 | F53: 1450 | G53: 1450 | H53: 1450 | I53: 1450 | J53: 1450 | K53: 1450 | L53: 1450 | M53: 1450 | N53: =SUM(B53:M53) -> 17400
A54: 5103B : 1 BED/ 1 BATH | B54: 1450 | C54: 1450 | D54: 1450 | E54: 1450 | F54: 1450 | G54: 1450 | H54: 1450 | I54: 1450 | J54: 1450 | K54: 1450 | L54: 1450 | M54: 1450 | N54: 17400
A55: 5110 : 1 BED/ 1 BATH | B55: 1450 | C55: 1450 | D55: 1450 | E55: 1450 | F55: 1450 | G55: 1450 | H55: 1450 | I55: 1450 | J55: 1450 | K55: 1450 | L55: 1450 | M55: 1450 | N55: 17400
A56: 9148A : 1 BED/ 1 BATH | B56: 1250 | C56: 1250 | D56: 1250 | E56: 1250 | F56: 1250 | G56: 1250 | H56: 1250 | I56: 1250 | J56: 1250 | K56: 1250 | L56: 1250 | M56: 1250 | N56: 15000
A57: 9148B : 1 BED / 1 BATH | B57: 1250 | C57: 1250 | D57: 1250 | E57: 1250 | F57: 1250 | G57: 1250 | H57: 1250 | I57: 1250 | J57: 1250 | K57: 1250 | L57: 1250 | M57: 1250 | N57: 15000
A58: STORAGE 5105 | B58: 100 | C58: 100 | D58: 100 | E58: 100 | F58: 100 | G58: 100 | H58: 100 | I58: 100 | J58: 100 | K58: 100 | L58: 100 | M58: 100 | N58: 1200
A59: STORAGE 5103B | B59: 100 | C59: 100 | D59: 100 | E59: 100 | F59: 100 | G59: 100 | H59: 100 | I59: 100 | J59: 100 | K59: 100 | L59: 100 | M59: 100 | N59: 1200
A60: Total | B60: =SUM(B52:B59) -> 8550 | C60: 8550 | D60: 8550 | E60: 8550 | F60: 8550 | G60: 8550 | H60: 8550 | I60: 8550 | J60: =SUM(J52:J59) -> 8550 | K60: 8550 | L60: 8550 | M60: 8550 | N60: 102600
A62: Year 2023 | B62: JAN | C62: FEB | D62: MAR | E62: APR | F62: MAY | G62: JUN | H62: JUL | I62: AUG | J62: SEP | K62: OCT | L62: NOV | M62: DEC
A63: 5101 : 1 BED/ 1 BATH | B63: 1500 | C63: 1500 | D63: 1500 | E63: 1500 | F63: 1500 | G63: 1500 | H63: 1500 | I63: 1500 | J63: 1725 | K63: 1725 | L63: 1725 | M63: 1725 | N63: =SUM(B63:M63) -> 18900
A64: 5103A : 1 BED/ 1 BATH | B64: 1450 | C64: 1450 | D64: 1450 | E64: 1450 | F64: 1450 | G64: 1450 | H64: 1450 | I64: 1450 | J64: 1670 | K64: 1670 | L64: 1670 | M64: 1670 | N64: =SUM(B64:M64) -> 18280
A65: 5103B : 1 BED/ 1 BATH | B65: 1450 | C65: 1450 | D65: 1450 | E65: 1450 | F65: 1450 | G65: 1450 | H65: 1450 | I65: 1450 | J65: 1680 | K65: 1680 | L65: 1680 | M65: 1680 | N65: 18320
A66: 5110 : 1 BED/ 1 BATH | B66: 1450 | C66: 1450 | D66: 1450 | E66: 1450 | F66: 1450 | G66: 1450 | H66: 1450 | I66: 1450 | J66: 1680 | K66: 1680 | L66: 1680 | M66: 1680 | N66: 18320
A67: 9148A : 1 BED/ 1 BATH | B67: 1250 | C67: 1250 | D67: 1250 | E67: 1250 | F67: 1250 | G67: 1250 | H67: 1250 | I67: 1250 | J67: 1350 | K67: 1350 | L67: 1350 | M67: 1350 | N67: 15400
A68: 9148B : 1 BED / 1 BATH | B68: 1250 | C68: 1250 | D68: 1250 | E68: 1250 | F68: 1250 | G68: 1250 | H68: 1250 | I68: 1250 | J68: 1350 | K68: 1350 | L68: 1350 | M68: 1350 | N68: 15400
A69: STORAGE 5105 | B69: 100 | C69: 100 | D69: 100 | E69: 100 | F69: 100 | G69: 100 | H69: 100 | I69: 100 | J69: 100 | K69: 100 | L69: 100 | M69: 100 | N69: 1200
A70: STORAGE 5103B | B70: 100 | C70: 100 | D70: 100 | E70: 100 | F70: 100 | G70: 100 | H70: 100 | I70: 100 | J70: 100 | K70: 100 | L70: 100 | M70: 100 | N70: 1200
A71: Total | B71: =SUM(B63:B70) -> 8550 | C71: 8550 | D71: 8550 | E71: =SUM(E63:E70) -> 8550 | F71: 8550 | G71: 8550 | H71: =SUM(H63:H70) -> 8550 | I71: 8550 | J71: =SUM(J63:J70) -> 9655 | K71: =SUM(K63:K70) -> 9655 | L71: 9655 | M71: 9655 | N71: 107020
A73: Year 2024 | B73: JAN | C73: FEB | D73: MAR | E73: APR | F73: MAY | G73: JUN | H73: JUL | I73: AUG | J73: SEP | K73: OCT | L73: NOV | M73: DEC
A74: 5101 : 1 BED/ 1 BATH | B74: 1725 | C74: 1725 | D74: 1725 | E74: 1725 | F74: 1725 | G74: 1725 | H74: 1725 | I74: 1725 | J74: 1875 | K74: 1875 | L74: 1875 | M74: 1876 | N74: =SUM(B74:M74) -> 21301
A75: 5103A : 1 BED/ 1 BATH | B75: 1670 | C75: 1670 | D75: 1670 | E75: 1670 | F75: 1670 | G75: 1670 | H75: 1670 | I75: 1670 | J75: VACANT | K75: VACANT | L75: VACANT | M75: VACANT | N75: =SUM(B75:M75) -> 13360
A76: 5103B : 1 BED/ 1 BATH | B76: 1680 | C76: 1680 | D76: 1680 | E76: 1680 | F76: 1680 | G76: 1680 | H76: 1680 | I76: 1680 | J76: 1935 | K76: VACANT | L76: VACANT | M76: VACANT | N76: 15375
A77: 5110 : 1 BED/ 1 BATH | B77: 1680 | C77: 1680 | D77: 1680 | E77: 1680 | F77: 1680 | G77: 1680 | H77: 1680 | I77: 1680 | J77: 1935 | K77: 1935 | L77: 1935 | M77: 1935 | N77: 21180
A78: 9148A : 1 BED/ 1 BATH | B78: 1350 | C78: 1350 | D78: 1350 | E78: 1350 | F78: 1350 | G78: 1350 | H78: 1350 | I78: 1350 | J78: 1490 | K78: 1490 | L78: 1490 | M78: 1490 | N78: 16760
A79: 9148B : 1 BED / 1 BATH | B79: 1350 | C79: 1350 | D79: 1350 | E79: 1350 | F79: 1350 | G79: 1350 | H79: 1350 | I79: 1350 | J79: 1490 | K79: 1490 | L79: 1490 | M79: 1490 | N79: 16760
A80: STORAGE 5105 | B80: 100 | C80: 100 | D80: 100 | E80: 100 | F80: 100 | G80: 100 | H80: 100 | I80: 100 | J80: 100 | K80: 100 | L80: 100 | M80: 100 | N80: 1200
A81: STORAGE 5103B | B81: 100 | C81: 100 | D81: 100 | E81: 100 | F81: 100 | G81: 100 | H81: 100 | I81: 100 | J81: 100 | K81: VACANT | L81: VACANT | M81: VACANT | N81: 900
A82: Total | B82: =SUM(B74:B81) -> 9655 | C82: =SUM(C74:C81) -> 9655 | D82: =SUM(D74:D81) -> 9655 | E82: 9655 | F82: 9655 | G82: 9655 | H82: 9655 | I82: 9655 | J82: =SUM(J74:J81) -> 8925 | K82: =SUM(K74:K81) -> 6890 | L82: =SUM(L74:L81) -> 6890 | M82: =SUM(M74:M81) -> 6891 | N82: 106836
A84: Year 2025 | B84: JAN | C84: FEB | D84: MAR | E84: APR | F84: MAY | G84: JUNE | H84: JULY | I84: AUGUST | J84: SEPTEMBER | K84: OCTOBER
A85: 5101 : 1 BED/ 1 BATH | B85: 1876 | C85: 1877 | D85: 1878 | E85: 1879 | F85: 1880 | G85: 1875 | H85: 1875 | I85: 1875 | J85: 1876 | K85: 1877
A86: 5103A : 1 BED/ 1 BATH | B86: VACANT | C86: VACANT | D86: VACANT | E86: VACANT | F86: VACANT | G86: VACANT | H86: VACANT | I86: VACANT | J86: VACANT | K86: VACANT
A87: 5103B : 1 BED/ 1 BATH | B87: VACANT | C87: VACANT | D87: VACANT | E87: VACANT | F87: VACANT | G87: VACANT | H87: VACANT | I87: VACANT | J87: VACANT | K87: VACANT
A88: 5110 : 1 BED/ 1 BATH | B88: 1835 | C88: 1835 | D88: 1835 | E88: 1835 | F88: 1835 | G88: 1835 | H88: 1835 | I88: 1835 | J88: 1836 | K88: 1837
A89: 9148A : 1 BED/ 1 BATH | B89: 1490 | C89: 1490 | D89: 1490 | E89: 1490 | F89: 1490 | G89: VACANT | H89: VACANT | I89: VACANT | J89: VACANT | K89: VACANT
A90: 9148B : 1 BED / 1 BATH | B90: 1490 | C90: 1490 | D90: 1490 | E90: 1490 | F90: 1490 | G90: 1490 | H90: 1490 | I90: 1490 | J90: 1490 | K90: 1490
A91: STORAGE 1 | B91: VACANT | C91: 100 | D91: 100 | E91: 100 | F91: 100 | G91: 100 | H91: 100 | I91: 100 | J91: 100 | K91: 100
A92: STORAGE 2 | B92: VACANT | C92: VACANT | D92: VACANT | E92: VACANT | F92: VACANT | G92: VACANT | H92: VACANT | I92: VACANT | J92: VACANT | K92: VACANT
A93: STORAGE 3 | B93: VACANT | C93: VACANT | D93: VACANT | E93: VACANT | F93: VACANT | G93: VACANT | H93: VACANT | I93: VACANT | J93: VACANT | K93: VACANT
A94: Total | B94: =SUM(B85:B93) -> 6691 | C94: =SUM(C85:C93) -> 6792 | D94: 6793 | E94: 6794 | F94: 6795 | G94: =SUM(G85:G93) -> 5300 | H94: =SUM(H85:H93) -> 5300 | I94: =SUM(I85:I93) -> 5300 | J94: 5302 | K94: 5304
